bitfinex-derivatives/quotes_SOLF0:USTF0_20241024
["timestamp","ask_amount","ask_price","bid_price","bid_amount"]
[1729745766841,14.24895535,173.83,173.81,1.44001643]
[1729745767027,14.24895535,173.83,173.82,1.44001643]
[1729745767733,7.179,173.83,173.82,1.44001643]
[1729745768129,7.179,173.83,173.82,2.59165643]
[1729745768734,4.3,173.83,173.82,2.59165643]
[1729745770427,4.3,173.83,173.82,2.59162948]
[1729745775428,7.179,173.83,173.82,1.43998948]
[1729745778035,7.1791,173.83,173.8,1.10047]
[1729745778241,14.24905535,173.83,173.81,1.44009683]
[1729745778442,14.24905535,173.83,173.82,1.44009683]
[1729745778627,11.36995535,173.83,173.82,1.44009683]
[1729745781239,11.36995535,173.83,173.81,1.10047]
[1729745781542,11.36995535,173.83,173.82,1.44003767]
[1729745784847,11.36995535,173.83,173.81,1.10053]
[1729745785049,11.36995535,173.83,173.82,1.44004274]
[1729745790353,4.3,173.83,173.82,1.44004274]
[1729745791655,4.3,173.83,173.82,1.44001659]
[1729745792862,7.179,173.83,173.82,1.44001659]
[1729745799466,7.179,173.83,173.81,1.10053]
[1729745799964,7.179,173.83,173.82,1.44005605]
[1729745800373,14.24895535,173.83,173.82,1.44005605]
[1729745800965,7.179,173.83,173.82,1.44005605]
[1729745801163,14.24895535,173.83,173.82,1.44005605]
[1729745801662,2.8804,173.75,173.72,1.1845]
[1729745801854,11.36995535,173.74,173.72,2.3362]
[1729745802059,11.36995535,173.74,173.72,1.1845]
[1729745803867,11.36995535,173.74,173.72,2.3362]
[1729745804559,7.06995535,173.73,173.68,2.8815]
[1729745805059,7.06995535,173.73,173.68,4.0332]
[1729745805258,7.06995535,173.73,173.68,3.98197]
[1729745805456,7.06995535,173.73,173.68,1.10047]
[1729745805759,9.95085535,173.72,173.66,11.12135535]
[1729745805964,9.95085535,173.72,173.66,12.22182535]
[1729745807364,4.3,173.74,173.69,9.95125535]
[1729745807967,4.3,173.74,173.69,11.05172535]
[1729745808269,2.8807,173.73,173.69,8.17042535]
[1729745808473,4.3,173.74,173.69,8.17042535]
[1729745808661,11.36995535,173.74,173.69,1.10047]
[1729745809663,7.06995535,173.73,173.69,1.10047]
[1729745809863,2.881,173.72,173.69,1.10047]
[1729745810073,7.06995535,173.73,173.69,1.10047]
[1729745811371,9.95065535,173.73,173.69,1.10047]
[1729745812459,2.8809,173.72,173.69,1.10047]
[1729745812775,7.06995535,173.73,173.69,1.10047]
[1729745814272,9.95065535,173.73,173.69,1.10047]
[1729745817571,9.95065535,173.73,173.67,9.95155535]
[1729745817572,2.8812,173.7,173.67,1.10053]
[1729745817765,4.28,173.69,173.67,1.10053]
[1729745817968,4.28,173.69,173.67,1.10057]
[1729745823068,4.28,173.69,173.67,8.17052535]
[1729745824371,4.28,173.69,173.67,11.05222535]
[1729745832466,4.28,173.69,173.68,2.8815]
[1729745832667,4.28,173.69,173.67,8.17052535]
[1729745833675,4.28,173.69,173.67,11.05212535]
[1729745833881,4.28,173.69,173.67,8.17052535]
[1729745834179,4.28,173.69,173.68,2.8815]
[1729745834575,4.28,173.69,173.68,3.98216]
[1729745835180,7.06995535,173.74,173.68,3.98216]
[1729745835181,7.06995535,173.74,173.68,1.10066]
[1729745835377,2.8811,173.71,173.68,1.10066]
[1729745835679,4.28,173.73,173.68,1.10066]
[1729745835880,4.28,173.73,173.68,3.98216]
[1729745836072,4.28,173.73,173.68,1.10066]
[1729745836272,2.881,173.72,173.68,1.10066]
[1729745836673,4.28,173.73,173.53,2.67057196]
[1729745836876,7.06995535,173.65,173.58,7.06995535]
[1729745837073,4.28,173.64,173.58,11.10568535]
[1729745837681,4.28,173.64,173.58,11.05368535]
[1729745837976,4.28,173.64,173.59,2.883]
[1729745838384,4.28,173.64,173.59,3.98363]
[1729745838780,9.95215535,173.65,173.59,3.98363]
[1729745838976,4.28,173.64,173.59,3.98363]
[1729745839177,2.8827,173.61,173.55,7.06995535]
[1729745839378,4.28,173.6,173.55,7.06995535]
[1729745840083,62.22,173.76,173.59,7.06995535]
[1729745840273,7.06995535,173.73,173.66,7.06995535]
[1729745840782,2.8814,173.69,173.65,7.06995535]
[1729745840983,4.28,173.68,173.65,7.06995535]
[1729745841381,4.28,173.68,173.65,8.17048535]
[1729745844078,4.28,173.68,173.66,7.06995535]
[1729745844274,4.28,173.68,173.66,8.17048535]
[1729745845285,4.28,173.67,173.66,8.17048535]
[1729745846387,2.8811,173.71,173.66,8.17048535]
[1729745846582,4.28,173.7,173.68,7.06995535]
[1729745846987,1.2603,173.75,173.69,7.06995535]
[1729745847285,1.2603,173.75,173.65,2.8819]
[1729745847286,4.28,173.74,173.72,7.06995535]
[1729745847485,4.28,173.73,173.72,7.06995535]
[1729745847681,4.28,173.73,173.72,8.17048535]
[1729745848681,62.22,173.8,173.72,8.17048535]
[1729745848877,62.22,173.8,173.75,7.06995535]
[1729745848878,7.1597,173.79,173.75,7.06995535]
[1729745849085,7.1597,173.79,173.77,7.06995535]
[1729745849583,62.22,173.8,173.77,7.06995535]
[1729745849782,62.22,173.8,173.74,1.10053]
[1729745849783,4.28,173.79,173.78,7.06995535]
[1729745851689,4.28,173.79,173.78,8.17048535]
[1729745853289,2.8791,173.83,173.78,8.17048535]
[1729745853484,4.28,173.82,173.79,7.06995535]
[1729745853880,7.1593,173.82,173.79,7.06995535]
[1729745856190,4.28,173.82,173.79,7.06995535]
[1729745856986,4.28,173.82,173.79,8.17036535]
[1729745857387,4.28,173.82,173.81,7.06995535]
[1729745858085,4.28,173.82,173.81,8.17036535]
[1729745858282,62.2,173.89,173.81,8.17036535]
[1729745858485,62.2,173.89,173.88,7.06995535]
[1729745858686,66.48,173.89,173.88,7.06995535]
[1729745859086,69.358,173.89,173.88,7.06995535]
[1729745859392,66.48,173.89,173.88,7.06995535]
[1729745860187,62.2,173.89,173.88,7.06995535]
[1729745860492,66.48,173.89,173.88,7.06995535]
[1729745860689,4.28,173.89,173.88,7.06995535]
[1729745860891,4.28,173.89,173.88,8.17036535]
[1729745861996,4.28,173.9,173.88,8.17036535]
[1729745862293,4.28,173.91,173.89,7.06995535]
[1729745862498,1.2833,173.95,173.9,7.06995535]
[1729745862499,4.28,173.92,173.9,7.06995535]
[1729745862685,4.28,173.92,173.91,7.06995535]
[1729745863094,4.28,173.92,173.91,8.17036535]
[1729745865990,69.24995535,174.0,173.91,8.17036535]
[1729745865991,62.18,174.0,173.91,8.17036535]
[1729745866187,4.28,173.99,173.95,7.06995535]
[1729745866392,62.18,174.0,173.95,7.06995535]
[1729745866594,4.28,173.99,173.95,7.06995535]
[1729745866999,2.8767,173.98,173.95,7.06995535]
[1729745868202,4.28,173.99,173.95,7.06995535]
[1729745868401,4.28,173.98,173.95,1.10041]
[1729745869298,11.31126422,174.05,173.96,11.05236422]
[1729745869299,4.28,174.03,173.96,11.05236422]
[1729745869498,4.28,174.03,173.98,11.05236422]
[1729745869694,4.28,174.03,174.01,11.05236422]
[1729745870091,4.28,174.03,174.01,12.15289422]
[1729745871101,62.14,174.12,174.02,2.8759]
[1729745871102,2.8747,174.09,174.02,2.8759]
[1729745871301,62.14,174.12,174.03,11.05236422]
[1729745871601,4.28,174.11,174.03,12.15289422]
[1729745871802,2.8751,174.07,174.03,12.15289422]
[1729745871998,4.28,174.06,174.01,11.05236422]
[1729745872705,4.28,174.06,174.01,11.25243422]
[1729745873409,4.28,174.06,174.01,14.12843422]
[1729745874209,4.28,174.06,174.04,11.05236422]
[1729745874898,4.28,174.06,174.04,11.25243422]
[1729745875104,4.28,174.06,174.04,0.20007]
[1729745875301,4.28,174.06,174.04,1.10041]
[1729745875904,2.8756,174.05,174.03,1.10041]
[1729745876100,4.28,174.06,174.01,12.15277422]
[1729745876905,4.28,174.06,174.01,1.10041]
[1729745878406,4.28,174.06,173.96,12.27886422]
[1729745878712,4.28,174.06,173.96,13.37933422]
[1729745879403,2.8758,174.03,173.96,16.25613422]
[1729745879606,4.28,174.02,173.96,16.25613422]
[1729745879806,0.2564,174.09,173.96,2.32697]
[1729745879807,11.05236422,174.05,173.96,2.32697]
[1729745880003,4.28,174.04,173.96,2.32697]
[1729745880203,4.28,174.04,173.96,1.2265]
[1729745880607,2.8763,174.0,173.96,2.37708]
[1729745880810,4.28,173.99,173.96,2.3271]
[1729745881008,4.28,173.99,173.96,2.37695]
[1729745881203,4.28,173.99,173.94,2.8771]
[1729745881413,7.1564,173.99,173.94,1.15045]
[1729745882913,4.28,173.99,173.93,1.15045]
[1729745883219,2.8768,173.97,173.93,1.15045]
[1729745883614,4.28,173.99,173.93,1.15045]
[1729745883914,2.8769,173.97,173.93,1.15045]
[1729745884120,4.28,173.99,173.93,1.15045]
[1729745884306,4.28,173.99,173.92,1.10047]
[1729745884510,4.28,173.99,173.9,1.194]
[1729745884818,4.28,173.99,173.9,5.22261]
[1729745885016,4.28,173.99,173.9,5.17237]
[1729745885721,2.877,173.96,173.91,2.8777]
[1729745885915,4.28,173.95,173.91,2.8777]
[1729745886518,4.28,173.95,173.91,3.97817]
[1729745887019,4.28,173.95,173.94,2.8772]
[1729745887215,0.4058,173.95,173.94,2.8772]
[1729745887524,1.1888,174.02,173.94,3.97767]
[1729745887525,4.28,173.98,173.94,3.97767]
[1729745887723,4.28,173.98,173.94,1.10047]
[1729745889024,11.05236422,174.03,173.94,1.10047]
[1729745889217,2.8764,173.99,173.94,3.97767]
[1729745889418,4.28,173.98,173.94,3.97767]
[1729745890323,7.1566,173.98,173.94,3.97767]
[1729745890518,7.1566,173.98,173.94,1.10047]
[1729745891719,7.1566,173.98,173.9,4.0718]
[1729745891720,2.8771,173.95,173.9,4.0718]
[1729745891925,4.28,173.94,173.9,4.0718]
[1729745892125,4.28,173.94,173.9,2.34445]
[1729745892620,4.28,173.94,173.9,1.194]
[1729745893313,7.1573,173.94,173.9,4.0718]
[1729745893621,7.1573,173.94,173.9,5.17214]
[1729745897830,7.1573,173.94,173.82,62.14]
[1729745897831,4.28,173.94,173.86,11.05236422]
[1729745898028,2.8775,173.93,173.86,12.15264422]
[1729745898328,2.8775,173.93,173.86,12.20324422]
[1729745898635,2.8775,173.93,173.86,11.05236422]
[1729745899334,2.8775,173.93,173.88,2.8781]
[1729745900530,2.8779,173.9,173.85,2.8786]
[1729745900834,4.28,173.89,173.8,3.6304]
[1729745901140,4.28,173.89,173.83,11.05236422]
[1729745901528,4.28,173.89,173.86,2.8785]
[1729745902031,4.28,173.89,173.85,11.05236422]
[1729745902732,4.28,173.89,173.88,2.8781]
[1729745903322,4.28,173.91,173.88,2.8781]
[1729745903525,4.28,173.91,173.88,1.10047]
[1729745903733,4.28,173.91,173.88,12.15283422]
[1729745903930,4.28,173.91,173.9,2.8779]
[1729745904230,4.28,173.91,173.9,3.97837]
[1729745906132,4.28,173.93,173.92,2.8774]
[1729745906539,4.28,173.93,173.92,3.97787]
[1729745907330,4.28,173.93,173.92,1.10047]
[1729745907841,4.28,173.94,173.92,1.10047]
[1729745909025,63.3573,174.0,173.92,1.10047]
[1729745909231,2.8766,173.98,173.93,2.8774]
[1729745909627,2.8766,173.98,173.93,3.97787]
[1729745910133,4.28,173.97,173.93,1.10047]
[1729745910333,4.28,173.97,173.94,2.8771]
[1729745910640,4.28,173.97,173.93,1.10047]
[1729745911339,4.28,173.97,173.94,2.8771]
[1729745912034,4.28,173.97,173.94,3.97757]
[1729745912234,4.28,173.97,173.95,2.877]
[1729745912628,4.28,173.97,173.95,3.97747]
[1729745913028,4.28,173.97,173.95,1.10047]
[1729745913937,4.28,173.97,173.95,3.97737]
[1729745914338,4.28,173.97,173.95,1.10047]
[1729745915040,4.28,173.97,173.92,1.15048]
[1729745915341,4.28,173.97,173.92,1.10028]
[1729745916343,4.28,173.97,173.94,2.8771]
[1729745916546,4.28,173.97,173.93,11.05236422]
[1729745916948,4.28,173.97,173.94,2.8772]
[1729745917439,4.28,173.97,173.93,12.15264422]
[1729745918044,4.28,173.97,173.94,2.8772]
[1729745918745,4.28,173.97,173.94,3.97748]
[1729745919044,4.28,173.97,173.94,1.10028]
[1729745919742,4.28,173.97,173.94,3.97738]
[1729745920040,4.28,173.97,173.94,1.10028]
[1729745920246,4.28,173.97,173.93,1.10034]
[1729745920447,4.28,173.97,173.92,1.15048]
[1729745920647,4.28,173.97,173.9,11.05236422]
[1729745920648,4.28,173.97,173.9,12.15261422]
[1729745921243,4.28,173.97,173.92,2.8775]
[1729745921550,4.28,173.97,173.93,11.05236422]
[1729745921847,4.28,173.97,173.93,12.15261422]
[1729745922145,4.28,173.98,173.97,2.8766]
[1729745922341,4.28,173.98,173.96,1.10025]
[1729745922541,4.28,173.98,173.93,12.15270422]
[1729745922950,4.28,173.98,173.94,2.8771]
[1729745923139,4.28,173.98,173.93,12.15270422]
[1729745923741,4.28,173.98,173.96,2.8768]
[1729745924445,4.28,173.98,173.97,7.07168911]
[1729745925046,4.28,173.98,173.97,9.94838911]
[1729745925354,4.28,173.98,173.96,1.10034]
[1729745925547,4.28,173.98,173.95,8.17202911]
[1729745925941,7.07168911,173.96,173.87,3.7782]
[1729745926249,2.8774,173.93,173.89,2.878]
[1729745926445,4.28,173.92,173.89,2.878]
[1729745926851,4.28,173.92,173.89,3.97863]
[1729745927353,4.28,173.92,173.9,2.8778]
[1729745928041,4.28,173.92,173.9,3.97843]
[1729745929557,4.28,173.92,173.91,2.8777]
[1729745929751,4.28,173.92,173.91,3.97833]
[1729745930449,4.28,173.92,173.91,1.10063]
[1729745931058,4.28,173.92,173.9,2.8778]
[1729745931259,4.28,173.92,173.9,3.97821]
[1729745931455,4.28,173.92,173.9,1.10041]
[1729745931867,4.28,173.92,173.89,1.10034]
[1729745932063,4.28,173.92,173.89,3.97828]
[1729745932267,4.28,173.92,173.89,2.878]
[1729745932669,4.28,173.92,173.89,3.97828]
[1729745932867,4.28,173.92,173.83,4.28]
[1729745932868,4.28,173.92,173.87,1.10028]
[1729745933071,2.8777,173.91,173.87,2.8783]
[1729745933864,2.8777,173.91,173.87,3.97864]
[1729745934574,2.8777,173.91,173.88,2.8782]
[1729745934764,4.28,173.92,173.88,2.8782]
[1729745935065,4.28,173.92,173.86,1.10034]
[1729745935274,4.28,173.92,173.89,2.878]
[1729745939171,4.28,173.92,173.83,11.0605663]
[1729745939372,4.28,173.92,173.87,2.8782]
[1729745940267,4.28,173.92,173.87,3.97867]
[1729745940464,4.28,173.92,173.88,2.8782]
[1729745941379,4.28,173.92,173.89,2.8779]
[1729745942172,14.7544663,173.99,173.92,2.8776]
[1729745942468,14.7544663,173.99,173.9,11.0605663]
[1729745942469,4.28,173.98,173.9,11.0605663]
[1729745942675,4.28,173.98,173.9,1.10047]
[1729745942867,14.7544663,173.99,173.9,3.97827]
[1729745942868,4.28,173.97,173.9,3.97827]
[1729745943267,14.7544663,173.99,173.9,1.10047]
[1729745943474,7.1566,173.98,173.92,2.8774]
[1729745944380,2.877,173.96,173.91,3.97817]
[1729745944680,2.877,173.96,173.91,2.8777]
[1729745945666,2.877,173.96,173.91,3.97804]
[1729745945871,2.8769,173.96,173.91,3.97804]
[1729745946482,7.1567,173.98,173.91,1.10034]
[1729745947482,7.1567,173.98,173.93,2.8774]
[1729745948285,4.28,173.97,173.95,2.877]
[1729745948581,64.9964,174.0,173.95,2.877]
[1729745948878,4.28,173.99,173.95,2.877]
[1729745950875,4.28,173.99,173.94,1.10034]
[1729745951182,4.28,173.99,173.88,3.7336]
[1729745951183,2.8766,173.98,173.93,2.8774]
[1729745951484,4.28,173.99,173.93,3.97774]
[1729745951681,4.28,173.99,173.94,2.8771]
[1729745952285,4.28,173.99,173.94,3.97744]
[1729745953087,7.1564,173.99,173.94,3.97744]
[1729745953381,15.3405663,173.99,173.94,1.10034]
[1729745953686,2.8772,173.94,173.89,2.8779]
[1729745953882,4.28,173.93,173.89,2.8779]
[1729745954078,4.28,173.93,173.89,3.97831]
[1729745955281,2.8778,173.91,173.89,1.10041]
[1729745955477,2.8778,173.91,173.86,2.8785]
[1729745955883,2.8779,173.9,173.85,1.15091]
[1729745956183,4.28,173.89,173.85,1.15091]
[1729745956387,4.28,173.89,173.85,1.10022]
[1729745957386,7.1581,173.89,173.85,1.10022]
[1729745959080,2.8784,173.87,173.85,1.10022]
[1729745959280,4.28,173.89,173.83,1.10022]
[1729745959683,4.28,173.89,173.83,1.15124]
[1729745959983,4.28,173.89,173.83,3.97941]
[1729745959984,2.8785,173.87,173.83,3.97941]
[1729745960378,4.28,173.89,173.83,1.10041]
[1729745960585,4.28,173.89,173.86,2.8785]
[1729745960784,4.28,173.89,173.86,3.97891]
[1729745960981,4.28,173.89,173.86,1.10041]
[1729745961978,4.28,173.89,173.85,1.10028]
[1729745962884,4.28,173.89,173.86,2.8785]
[1729745963389,4.28,173.89,173.87,2.8784]
[1729745964485,4.28,173.89,173.87,3.97868]
[1729745964980,11.0605663,173.95,173.87,1.10028]
[1729745965180,2.8775,173.93,173.87,1.10028]
[1729745965386,4.28,173.92,173.87,1.10028]
[1729745966180,4.28,173.92,173.87,0.10948]
[1729745966381,262.0,173.88,173.71,2.4656]
[1729745966694,11.0605663,173.79,173.71,2.4656]
[1729745966894,2.8804,173.76,173.71,3.61717]
[1729745967095,5.0,173.75,173.71,3.61717]
[1729745967393,5.0,173.75,173.64,1.15157]
[1729745967394,11.0605663,173.72,173.64,1.15157]
[1729745967589,5.0,173.75,173.64,1.15157]
[1729745967590,11.0605663,173.7,173.64,1.15157]
[1729745967893,5.0,173.69,173.64,1.10063]
[1729745969284,2.8816,173.68,173.64,1.10063]
[1729745969489,5.0,173.69,173.64,1.10063]
[1729745969686,5.0,173.69,173.64,1.15273]
[1729745971390,11.0605663,173.67,173.63,1.15273]
[1729745971598,11.0605663,173.67,173.6,2.4684]
[1729745971796,11.0605663,173.67,173.62,1.10041]
[1729745971989,11.0605663,173.67,173.63,1.10041]
[1729745972493,11.0605663,173.67,173.6,1.10041]
[1729745972898,11.0605663,173.67,173.6,1.15263]
[1729745973289,11.0605663,173.67,173.58,1.2702]
[1729745973494,11.0605663,173.67,173.6,1.10034]
[1729745973889,11.0605663,173.67,173.58,1.2702]
[1729745974097,11.0605663,173.67,173.6,1.10034]
[1729745974296,11.0605663,173.67,173.61,2.8826]
[1729745974497,11.0605663,173.67,173.61,3.98294]
[1729745976992,13.9423663,173.67,173.61,1.10034]
[1729745977203,11.0605663,173.67,173.61,1.10034]
[1729745978102,2.882,173.66,173.61,1.10034]
[1729745979297,11.0605663,173.67,173.61,1.10034]
[1729745979503,2.8821,173.65,173.61,1.10034]
[1729745979696,5.0,173.64,173.61,1.10034]
[1729745980404,7.8822,173.64,173.6,1.10041]
[1729745980604,7.8822,173.64,173.59,1.1528]
[1729745981004,7.8822,173.64,173.59,1.10041]
[1729745981800,5.0,173.64,173.59,1.10041]
[1729745982197,0.8145,173.74,173.59,1.10041]
[1729745982198,5.0,173.65,173.59,1.10041]
[1729745982402,5.0,173.65,173.63,2.8822]
[1729745983000,5.0,173.65,173.63,3.98261]
[1729745983406,5.0,173.65,173.63,1.10041]
[1729745983608,3.0604,173.65,173.64,2.8822]
[1729745983800,11.0605663,173.71,173.64,2.8822]
[1729745983999,5.0,173.68,173.64,3.98261]
[1729745985906,5.0,173.68,173.64,1.10041]
[1729745985907,2.882,173.66,173.64,1.10041]
[1729745986102,16.0605663,173.68,173.63,1.15257]
[1729745986504,2.8817,173.67,173.6,2.8828]
[1729745986705,16.0605663,173.68,173.6,1.10041]
[1729745988202,11.0605663,173.66,173.6,1.10041]
[1729745988504,2.883,173.6,173.54,2.8837]
[1729745988710,5.0,173.59,173.54,2.8837]
[1729745989108,5.0,173.59,173.54,1.10053]
[1729745989305,5.0,173.59,173.54,1.1531]
[1729745989306,2.8835,173.56,173.54,1.1531]
[1729745989708,5.0,173.59,173.54,1.1531]
[1729745989908,2.8835,173.57,173.54,1.1531]
[1729745990305,5.0,173.59,173.54,1.1531]
[1729745990509,2.8835,173.56,173.54,1.1531]
[1729745990907,2.8835,173.56,173.54,1.10034]
[1729745991301,5.0,173.59,173.54,1.1531]
[1729745991515,11.0605663,173.57,173.54,1.10034]
[1729745991814,11.0605663,173.57,173.54,1.1531]
[1729745992707,2.8837,173.56,173.54,1.1531]
[1729745993910,13.9440663,173.57,173.54,1.1531]
[1729745995109,11.0605663,173.57,173.54,1.10034]
[1729745995305,2.8836,173.56,173.54,1.10034]
[1729745995711,7.8831,173.59,173.54,1.10034]
[1729745995912,11.0605663,173.57,173.54,1.10034]
[1729745996211,0.8174,173.66,173.54,1.10034]
[1729745996212,4.92,173.56,173.54,1.10034]
[1729745997013,4.92,173.56,173.54,1.1531]
[1729746000716,2.8837,173.55,173.49,2.8847]
[1729746000922,2.8837,173.55,173.53,1.1531]
[1729746001121,2.8837,173.55,173.49,4.0378]
[1729746001421,2.8837,173.55,173.5,1.05989357]
[1729746001622,2.8837,173.55,173.5,2.21299357]
[1729746001821,2.8834,173.57,173.5,1.1531]
[1729746002120,4.92,173.57,173.51,12.12043052]
[1729746002327,4.92,173.57,173.53,2.8839]
[1729746002823,2.8832,173.58,173.53,4.037]
[1729746003123,4.92,173.57,173.54,2.8838]
[1729746003424,4.92,173.57,173.54,4.0369]
[1729746004913,4.92,173.57,173.55,2.8837]
[1729746005224,4.92,173.57,173.55,4.0368]
[1729746005726,4.92,173.57,173.55,3.98423]
[1729746006222,4.92,173.59,173.55,1.10053]
[1729746007822,4.92,173.59,173.52,2.458]
[1729746008022,4.92,173.59,173.54,2.8837]
[1729746008221,4.92,173.59,173.52,3.55847]
[1729746008424,4.92,173.59,173.53,1.05963981]
[1729746008727,4.92,173.59,173.53,2.16010981]
[1729746008928,4.92,173.59,173.56,2.8834]
[1729746009319,4.92,173.59,173.56,1.10047]
[1729746009517,4.92,173.59,173.57,2.8834]
[1729746009922,4.92,173.59,173.57,3.98387]
[1729746010117,4.92,173.59,173.57,1.10047]
[1729746010317,4.92,173.6,173.58,2.8832]
[1729746010618,4.92,173.6,173.57,1.10047]
[1729746010823,11.0605663,173.59,173.57,1.10047]
[1729746011017,11.0605663,173.59,173.56,1.15297]
[1729746011219,2.8833,173.58,173.56,1.15297]
[1729746011420,2.8833,173.58,173.56,1.10047]
[1729746013023,11.0605663,173.59,173.56,1.10047]
[1729746013219,13.9436663,173.59,173.56,1.10047]
[1729746013528,2.8831,173.59,173.56,1.10047]
[1729746015228,4.92,173.6,173.56,1.10047]
[1729746015424,2.8834,173.57,173.53,1.10047]
[1729746015627,4.92,173.56,173.53,1.1531]
[1729746015832,4.92,173.56,173.53,1.10028]
[1729746017127,7.8036,173.56,173.53,1.10028]
[1729746017329,4.92,173.56,173.53,1.10028]
[1729746017936,2.8838,173.55,173.53,1.10028]
[1729746019330,2.884,173.53,173.52,1.10022]
[1729746019529,2.884,173.53,173.46,4.8253]
[1729746019832,4.92,173.52,173.46,4.8253]
[1729746020025,4.92,173.52,173.46,4.77242]
[1729746020227,4.92,173.52,173.48,2.8848]
[1729746020540,4.92,173.52,173.48,3.98502]
[1729746021334,4.92,173.52,173.48,4.0379]
[1729746022842,4.92,173.52,173.48,1.1531]
[1729746024130,4.92,173.52,173.49,2.8846]
[1729746024940,4.92,173.52,173.49,4.0377]
[1729746025334,2.8845,173.5,173.49,1.1531]
[1729746028448,2.8845,173.5,173.49,1.10003]
[1729746029049,2.8848,173.49,173.47,1.10003]
[1729746029244,2.8848,173.49,173.47,1.09996]
[1729746029245,4.76,173.48,173.47,1.09996]
[1729746029645,4.76,173.48,173.44,2.8855]
[1729746029840,4.76,173.48,173.44,1.0999]
[1729746030043,15.8205663,173.48,173.36,11.0605663]
[1729746030249,15.8205663,173.48,173.36,12.2147663]
[1729746030554,15.8205663,173.48,173.36,12.1612963]
[1729746031349,2.8855,173.44,173.39,2.8863]
[1729746031553,4.76,173.43,173.39,2.8863]
[1729746032148,4.76,173.43,173.39,1.10073]
[1729746032461,4.76,173.43,173.39,1.15416]
[1729746032758,4.76,173.43,173.39,1.10066]
[1729746033149,11.0605663,173.48,173.39,1.10066]
[1729746033350,4.76,173.47,173.4,1.2467]
[1729746033657,4.76,173.46,173.4,3.6837]
[1729746033853,4.76,173.47,173.43,2.8856]
[1729746034155,4.76,173.47,173.4,4.78436]
[1729746034156,11.0605663,173.51,173.4,4.78436]
[1729746034355,4.76,173.5,173.41,11.0605663]
[1729746034657,2.8845,173.5,173.41,11.0605663]
[1729746034858,4.76,173.49,173.41,12.1612263]
[1729746036652,4.76,173.49,173.45,2.8853]
[1729746036846,4.76,173.5,173.43,11.0605663]
[1729746037046,2.8841,173.53,173.47,2.8849]
[1729746037248,4.76,173.53,173.46,11.0605663]
[1729746037551,4.76,173.53,173.41,4.76]
[1729746037751,4.76,173.53,173.47,2.885]
[1729746038153,2.8842,173.52,173.47,3.98566]
[1729746039060,4.76,173.53,173.47,3.98566]
[1729746039260,7.6441,173.53,173.47,3.98566]
[1729746039453,7.6441,173.53,173.48,2.8848]
[1729746039853,7.6441,173.53,173.48,4.03833]
[1729746040057,7.6441,173.53,173.48,3.98533]
[1729746041558,7.6441,173.53,173.48,1.10053]
[1729746041559,2.8842,173.52,173.48,1.10053]
[1729746046360,4.76,173.53,173.48,1.10053]
[1729746046560,4.76,173.53,173.49,2.8847]
[1729746046951,4.76,173.53,173.5,2.8845]
[1729746047150,4.76,173.53,173.5,3.98503]
[1729746047354,11.0605663,173.58,173.5,1.10053]
[1729746047553,7.6435,173.57,173.51,2.8843]
[1729746047856,4.76,173.56,173.51,2.8843]
[1729746048157,4.76,173.56,173.51,3.98483]
[1729746048755,7.6435,173.56,173.51,3.98483]
[1729746049861,7.6435,173.56,173.54,2.8838]